{"text_format":"1","workbook":"xlsx","n_sheets":2,"sheets":["HCA","NAC V-Drop"],"not_rendered":{"charts":0,"images":4,"macros":1,"external_links":0,"defined_names":2,"comments":1,"pivot_tables":0},"unopened":[],"bounds":{"document_bytes":16777216,"sheet_cells":100000,"rows_first":2000,"rows_last":500,"rows_between":2000,"halvings":0,"cell_chars":16384,"cell_head_chars":4096},"cells_cut":0,"cells_raw":0,"read":"whole","date_system":"1900"}

{"sheet":"HCA","index":0,"n_rows":79,"n_cols":28,"rows_kept":79,"cut":false,"hidden":false,"merged":[[45,9,45,12],[46,9,46,12],[30,6,30,7],[32,6,32,7],[33,6,33,7],[48,9,48,12],[50,9,50,12],[58,9,58,12],[52,9,56,12],[61,9,75,12],[27,4,27,5],[34,6,34,7],[47,9,47,12],[22,6,22,7],[24,6,24,7],[23,6,23,7],[25,6,25,7],[26,6,26,7],[27,6,27,7],[28,6,28,7],[29,6,29,7],[32,4,32,5],[33,4,33,5],[34,4,34,5],[22,4,22,5],[23,4,23,5],[24,4,24,5],[25,4,25,5],[26,4,26,5],[11,3,11,7],[20,3,20,7],[12,3,12,7],[13,3,13,7],[14,3,14,7],[15,3,15,7],[16,3,16,7],[17,3,17,7],[28,4,28,5],[35,4,35,5],[35,6,35,7],[36,4,36,5],[36,6,36,7],[29,4,29,5],[30,4,30,5]]}
[null,"HCA Conventional Panel Battery Calculator Tool"]
[]
[null,"The HCA Battery Calculator Tool will help you determine the batteries needed for your installation.  In order to use this tool you must  "]
[null,"know the number and type of devices that will be attached to your control panel, and the current requirements of any auxiliary devices "]
[null,"being powered by the control panel.  Please enter this information in the yellow boxes.",null,null,null,null,null,"To begin, answer the following questions…",null,null,null,null,null,null,0]
[null,null,null,null,null,null,null,null,null,null,null,null,null,null,20,"HCA-2","current panel value (to init form)"]
[null,"How much Standby Time (in hours) is required for the installation?",null,null,null,24,"Hours",null,null,null,null,null,null,null,0,"HCA-4",{"$f":"F10","v":"HCA-8D"},null,null,null,"(none)",null,null,null,null,null,{"$f":"F10","v":"HCA-8D"}]
[null,"How much Alarm Time* (in minutes) is required for the installation?",null,null,null,5,"Minutes",null,null,null,null,null,null,null,1,"HCA-8",null,null,null,null,"SOE-24V",59]
[null,null,null,null,null,null,null,null,null,null,null,null,null,null,null,"HCA-2D","selected panel value from form",null,null,null,"SOE-24H",59,null,null,null,null,36]
[null,null,null,null,null,{"$f":"Q10","v":"HCA-8D"},null,null,null,null,null,null,null,null,null,"HCA-4D","HCA-8D",null,"values from form 2",null,"SOC-24V",59]
[null,null,null,null,null,null,null,null,null,null,null,null,null,null,null,"HCA-8D",null,null,"SOE-24V",{"$f":"IFERROR(VLOOKUP(S11,U8:V19,2,FALSE),0)","v":59},"SOC-24VN",59]
[null,"Panel Components",null,"Comments",null,null,null,null,"Total Standby Current",null,"Total  Alarm  Current",null,null,null,null,2.5000000000000001E-2,"to set comboboxes on form 2",null,"SOE-24V",{"$f":"IFERROR(VLOOKUP(S12,U8:V19,2,FALSE),0)","v":59},"SLV-24V",45]
[null,"HCA-2, HCA-4 or HCA-8 Panel",1,"Fixed current draw for the 2, 4 or 8 zone panel",null,null,null,null,0.16,null,0.28999999999999998,null,null,null,24,null,{"$f":"IF(Q10=\"HCA-2\",2,IF(Q10=\"HCA-2D\",2,IF(Q10=\"HCA-4\",4,IF(Q10=\"HCA-4D\",4,IF(Q10=\"HCA-8\",8,IF(Q10=\"HCA-8D\",8,0))))))","v":8},null,"(none)",{"$f":"IFERROR(VLOOKUP(S13,U8:V19,2,FALSE),0)","v":0},"SLV-24N",45]
[null,"HCA Alarm Relay",1,"Alarm relay only draws current when panel is in alarm",null,null,null,null,0,null,2.5000000000000001E-2,null,null,null,48,null,null,null,"(none)",{"$f":"IFERROR(VLOOKUP(S14,U8:V19,2,FALSE),0)","v":0},"SLR-24H",45]
[null,"HCA Trouble Relay",1,"Trouble relay does not draw current when running on battery",null,null,null,null,0,null,0,null,null,null,60,null,null,null,"(none)",{"$f":"IFERROR(VLOOKUP(S15,U8:V19,2,FALSE),0)","v":0},"SLR-24V",45]
[null,"HCA Programmable Relay 1",null,"Programmable relay 1 only draws current for alarm",null,null,null,null,0,null,{"$f":"C16*$P$12","v":0},null,null,null,72,null,null,null,"(none)",{"$f":"IFERROR(VLOOKUP(S16,U8:V19,2,FALSE),0)","v":0},"SLR-835",55]
[null,"HCA Programmable Relay 2",null,"Programmable relay 2 only draws current for alarm",null,null,null,null,0,null,{"$f":"C17*$P$12","v":0},null,null,null,90,null,null,null,"(none)",{"$f":"IFERROR(VLOOKUP(S17,U8:V19,2,FALSE),0)","v":0},"DSC-EA",0]
[null,"HCA Programmable Relay 3",null,"Programmable relay 3 only draws current for alarm",null,null,null,null,0,null,{"$f":"C18*$P$12","v":0},null,null,null,null,null,null,null,"(none)",{"$f":"IFERROR(VLOOKUP(S18,U8:V19,2,FALSE),0)","v":0},"DCD-135",40]
[null,null,null,null,null,null,null,null,null,null,null,null,null,null,null,null,null,null,null,null,"DCD-190",40]
[null,"Remote Annunciator",null,null,null,null,null,null,null,null,null,null,null,null,null,{"$f":"OR(EXACT($F$10,P6),EXACT($F$10,P9))","v":false},null,null,null,null,"Mixed"]
[null,"Number of HCA-RA",null,null,null,null,null,null,{"$f":"C21*0.012","v":0},null,{"$f":"C21*0.03","v":0}]
[null,null,null,null,null,null,null,null,null,null,null,null,null,null,null,{"$f":"NOT(OR(EXACT($F$10,P8),EXACT($F$10,P11)))","v":false}]
[null,"Detectors per Zone",null,"Detector Quantity","Supervisory Current (uA) per Detector",null,"Maximum Alarm Current (A)",null,null,null,null,null,"Detector Type"]
[null,"Zone 1 Description",null,null,59,null,0.04,null,{"$f":"D24*E24/1000000","v":0},null,{"$f":"IF(D24 > 0,0.04,0)","v":0},null,{"$f":"IF(S11=\"\",\"\",S11)","v":"SOE-24V"},null,5,{"$f":"IF($D$10 = $P$9,$P$13,0)","v":0}]
[null,"Zone 2 Description",null,null,59,null,0.04,null,{"$f":"D25*E25/1000000","v":0},null,{"$f":"IF(D25 > 0,0.04,0)","v":0},null,"SOE-24V",null,15,{"$f":"IF($D$10 = $P$10,P14,0)","v":0}]
[null,"Zone 3 Description",null,null,0,null,0.04,null,{"$f":"D26*E26/1000000","v":0},null,0,null,"(none)",null,20,{"$f":"IF($D$10 = $P$11,P15,0)","v":0}]
[null,"Zone 4 Description",null,null,0,null,0.04,null,0,null,0,null,"(none)",null,30,{"$f":"SUM(P24:P26)","v":0}]
[null,"Zone 5 Description",null,null,0,null,0.04,null,0,null,0,null,"(none)"]
[null,"Zone 6 Description",null,null,0,null,0.04,null,0,null,0,null,"(none)",null,null,{"$f":"IF($F$10 = $P$9,$P$16,0)","v":0}]
[null,"Zone 7 Description",null,null,0,null,0.04,null,0,null,0,null,"(none)",null,null,{"$f":"IF($F$10 = $P$10,P17,0)","v":0}]
[null,"Zone 8 Description",null,null,0,null,0.04,null,0,null,0,null,"(none)",null,null,{"$f":"IF($F$10 = $P$11,P18,0)","v":0}]
[null,null,null,null,null,null,null,null,null,null,null,null,null,null,null,{"$f":"SUM(P29:P31)","v":0}]
[null,"Notification Appliances",null,null,"Standby Current (A)            (zero if NAC circuit)",null,"Alarm Current (A)"]
[null,"Output Circuit 1 Current",null,null,0,null,0,null,{"$f":"E34","v":0},null,{"$f":"G34","v":0}]
[null,"Output Circuit 2 Current",null,null,0,null,0,null,{"$f":"E35","v":0},null,{"$f":"G35","v":0}]
[null,"Output Circuit 3 Current",null,null,0,null,0,null,{"$f":"E36","v":0},null,{"$f":"G36","v":0}]
[null,"Output Circuit 4 Current",null,null,0,null,0,null,{"$f":"E37","v":0},null,{"$f":"G37","v":0}]
[null,null,null,null,null,null,null,null,null,null,null,null,null,null,null,{"$f":"SUM(K34:K37)","v":0}]
[null,"Total Standby/Alarm Current",null,null,null,null,null,null,null,null,null,null,null,null,null,{"$f":"SUM(I34:I37)","v":0}]
[null,{"$f":"IF(AND(G34<2.51, G35<2.51,G36<2.51,G37<2.51,E34<2.51, E35<2.51,E36<2.51,E37<2.51),\"\",\"You have exceeded the 2.5A maximum current limit per output circuit!\")","v":""},null,null,null,null,null,null,{"$f":"SUM(I13:I39)","v":0.16}," A",{"$f":"SUM(K13:K39)","v":0.315},"A"]
[null,{"$f":"IF(OR(AND(IF($F$10=$P$9,1,0),P38>6.2),AND(IF($F$10=$P$9,1,0),P39>6.2)),\"You have exceeded the maximum current of 6.2A for all 4 output circuits!\",\"\")","v":""}]
[null,{"$f":"IF(OR(AND(IF($F$10<>$P$9,1,0),P38>6.2),AND(IF($F$10<>$P$9,1,0),P39>6.2)),\"You have exceeded the maximum current of 6.2A for all 4 output circuits!\",\"\")","v":""}]
[]
[null,null,null,null,null,null,null,null,null,null,"   Site Information "]
[null,"Total Standby Current Draw =",null,{"$f":"I40","v":0.16},"AMPS"]
[null,"x Standby Time",null,{"$f":"F7","v":24},"Hours",null,null,null,"Site Name-"]
[null,"Standby Amp Hour Total =",null,{"$f":"PRODUCT(D45,D46)","v":3.84},"AH",null,null,null,"Address-",null,null,null,null,null,null,null,null,null,null,null,null,null,null,null,null,null,"for battery derating"]
[null,null,null,null,null,null,null,null,"City-",null,null,null,null,null,null,null,null,null,null,null,null,null,null,null,null,null,1.2,{"$f":"IF(D57=AA48,\"    20%\",\"    25%\")","v":"    25%"}]
[null,"Total Alarm Current Draw =",null,{"$f":"K40","v":0.315},"AMPS",null,null,null,"State & ZIP-",null,null,null,null,null,null,null,null,null,null,null,null,null,null,null,null,null,1.25]
[null,"x Alarm Time",null,{"$f":"F8/60","v":8.3333333333333329E-2},"Hours* "]
[null,"Alarm Amp Hour Total =",null,{"$f":"PRODUCT(D49,D50)","v":2.6249999999999999E-2},"AH",null,null,null,"Phone- "]
[]
[null,"Standby Amp-Hours Required =",null,{"$f":"D47","v":3.84},"AH",null,null,null,"Panel Info-"]
[null,"Alarm Amp-Hours Required =",null,{"$f":"D51","v":2.6249999999999999E-2},"AH"]
[null,"Total AH Required= ",null,{"$f":"SUM(D53,D54)","v":3.86625},"AH"]
[]
[null,"x Derating Factor",null,1.25,{"$f":"AB48","v":"    25%"}]
[null,"Minimum Battery Size Needed:",null,{"$f":"PRODUCT(D55,D57)","v":4.8328125000000002},"AH"]
[null,null,null,null,null,null,null,null,"Install Date-"]
[null,"    The HCA series panels can support batteries up to 18 AH. "]
[null,{"$f":"IF(D58>18, \"     YOU HAVE EXCEEDED THE 18AH MAXIUM BATTERY REQUIREMENT!!\",\"\")","v":""}]
[null,"     *  0.083 equals 5 minutes of alarm time, 0.25 equals 15 minutes of alarm.",null,null,null,null,null,null,"Misc.-"]
[]
[]
[]
[]
[]
[]
[]
[]
[]
[" NOTE:  Hochiki hereby disclaims all warranties relating to this software product, whether expressed or"]
[null,"  implied. Including without limitations any implied warranties of merchantability or fitness for a "]
[null,"  particular purpose.  Hochiki cannot and will not be liable for any incidental, consequential, special,"]
[null,"  indirect or similar damages for any reason.  It is the responsibility of the user to ascertain the "]
[null,"  accuracy and the reliability of any and all information generated or provided by this software."]
[]
[]
[null,"V3.4 - 011325"]

{"sheet":"NAC V-Drop","index":1,"n_rows":92,"n_cols":24,"rows_kept":92,"cut":false,"hidden":false,"merged":[]}
[null,null,null,null,null,null,null,null,null,null,null,null,null,null,null,null,null,"DON'T CHANGE ANY OF THE STUFF BELOW OR THIS SHEET WILL SELF-DESTRUCT"]
[]
[null,null,null,null,null,null,null,null,null,null,null,null,null,null,null,null,null,null,null,null,null,null,null,1]
[null,null,null,null,null,null,null,null,null,null,null,null,null,null,null,null,null,null,null,null,"k/ft","km","actual",{"$f":"IF(X3=1, \"Feet\",\"Meters\")","v":"Feet"}]
[null,"This sheet will calculate voltage drop and end of line voltage on the Notification Appliance Circuits.",null,null,null,null,null,null,null,null,null,null,null,null,null,null,null,"Feet",null,"#12 Solid",1.93,6.34,{"$f":"IF(X3=1,U5,V5)","v":1.93}]
[null,null,null,null,null,null,null,null,null,null,null,null,null,null,null,null,null,"Meters",null,"#12 Stranded",1.98,6.5,{"$f":"IF(X3=1,U6,V6)","v":1.98}]
[null,"You must enter the total NAC load on the HCA Battery Calculator page ",null,null,null,null,null,null,null,null,null,null,null,null,null,null,null,null,null,"#14 Solid",3.07,10.1,{"$f":"IF(X3=1,U7,V7)","v":3.07}]
[null,null,null,null,null,null,null,null,null,null,null,null,null,null,null,null,null,null,null,"#14 Stranded",3.14,10.3,{"$f":"IF(X3=1,U8,V8)","v":3.14}]
[null,"Enter your information in the purple-shaded cells below to calculate the EOL voltage.  ",null,null,null,null,null,null,null,null,null,null,null,null,null,null,null,24,null,"#16 Solid",4.8899999999999997,16,{"$f":"IF(X3=1,U9,V9)","v":4.8899999999999997},{"$f":"IF(X3=1,\"Ohms/1k Feet\", \"Ohms/km\")","v":"Ohms/1k Feet"}]
[null,null,null,null,null,null,null,null,null,null,null,null,null,null,null,null,null,20.399999999999999,null,"#16 Stranded",4.99,16.399999999999999,{"$f":"IF(X3=1,U10,V10)","v":4.99}]
[null,null,null,null,null,null,null,null,null,null,null,null,null,null,null,null,null,null,null,"#18 Solid",7.77,25.5,{"$f":"IF(X3=1,U11,V11)","v":7.77}]
[null,null,null,null,null,null,null,null,null,null,null,null,null,null,null,null,null,null,null,"#18 Stranded",7.95,26.1,{"$f":"IF(X3=1,U12,V12)","v":7.95}]
[null,null,null,null,null,null,null,null,null,null,null,null,null,null,null,null,null,null,null,"Wire abc",3.1,3.1,{"$f":"IF(X3=1,U13,V13)","v":3.1}]
[null,null,null,null,null,null,null,null,null,null,null,null,null,null,null,null,null,null,null,"Wire xyz",2.5,2.5,{"$f":"IF(X3=1,U14,V14)","v":2.5}]
[null,"Step "]
[null,1,{"$f":"T16","v":0},"     NAC 1 Total Load (automatically entered from Battery Calculator sheet)",null,null,null,null,null,null,null,null,null,null,null,null,"NAC1",{"$f":"HCA!E34","v":0},{"$f":"HCA!G34","v":0},{"$f":"R16+S16","v":0}]
[null,null,null,null,null,null,null,null,null,null,null,null,null,null,null,null,"NAC2",{"$f":"HCA!E35","v":0},{"$f":"HCA!G35","v":0},{"$f":"R17+S17","v":0}]
[null,2,"#16 Solid","     Select Wire Size and Type",null,null,null,null,null,null,null,null,null,null,null,null,"NAC3",{"$f":"HCA!E36","v":0},{"$f":"HCA!G36","v":0},{"$f":"R18+S18","v":0}]
[null,null,null,null,null,null,null,null,null,null,null,null,null,null,null,null,"NAC4",{"$f":"HCA!E37","v":0},{"$f":"HCA!G37","v":0},{"$f":"R19+S19","v":0}]
[null,3,0,"     Enter 1-Way Wire Length in",null,null,{"$f":"X4","v":"Feet"}]
[]
[null,4,24,"     NAC Voltage (worst-case is 85% of 24 VDC, 20.4 VDC)",null,null,null,null,null,null,null,null,null,null,null,null,"NAC 1","NAC 2","NAC 3","NAC 4"]
[null,null,null,null,null,null,null,null,null,null,null,null,null,null,null,null,{"$f":"IF(C18=T5,W5,0)","v":0},{"$f":"IF(C34=T5,W5,0)","v":0},{"$f":"IF(C50=T5,W5,0)","v":0},{"$f":"IF(C67=T5,W5,0)","v":0}]
[null,5,{"$f":"Q38","v":0},"     Actual Wire Resistance in Ohms (based on steps 2 and 3 above)",null,null,null,null,null,null,null,null,null,null,null,null,{"$f":"IF(C18=T6,W6,0)","v":0},{"$f":"IF(C34=T6,W6,0)","v":0},{"$f":"IF(C50=T6,W6,0)","v":0},{"$f":"IF(C67=T6,W6,0)","v":0}]
[null,null,null,null,null,null,null,null,null,null,null,null,null,null,null,null,{"$f":"IF(C18=T7,W7,0)","v":0},{"$f":"IF(C34=T7,W7,0)","v":0},{"$f":"IF(C50=T7,W7,0)","v":0},{"$f":"IF(C67=T7,W7,0)","v":0}]
[null,6,16,"     Enter the minimum voltage required (usually 16 volts)",null,null,null,null,null,null,null,null,null,null,null,null,{"$f":"IF(C18=T8,W8,0)","v":0},{"$f":"IF(C34=T8,W8,0)","v":0},{"$f":"IF(C50=T8,W8,0)","v":0},{"$f":"IF(C67=T8,W8,0)","v":0}]
[null,null,null,null,null,null,null,null,null,null,null,null,null,null,null,null,{"$f":"IF(C18=T9,W9,0)","v":4.8899999999999997},{"$f":"IF(C34=T9,W9,0)","v":0},{"$f":"IF(C50=T9,W9,0)","v":0},{"$f":"IF(C67=T9,W9,0)","v":0}]
[null,7,{"$f":"Q42","v":24},"     Voltage at EOL",null,null,null,null,null,null,null,null,null,null,null,null,{"$f":"IF(C18=T10,W10,0)","v":0},{"$f":"IF(C34=T10,W10,0)","v":0},{"$f":"IF(C50=T10,W10,0)","v":0},{"$f":"IF(C67=T10,W10,0)","v":0}]
[null,null,null,null,null,null,null,null,null,null,null,null,null,null,null,null,{"$f":"IF(C18=T11,W11,0)","v":0},{"$f":"IF(C34=T11,W11,0)","v":7.77},{"$f":"IF(C50=T11,W11,0)","v":7.77},{"$f":"IF(C67=T11,W11,0)","v":7.77}]
[null,null,null,null,null,null,null,null,null,null,null,null,null,null,null,null,{"$f":"IF(C18=T12,W12,0)","v":0},{"$f":"IF(C34=T12,W12,0)","v":0},{"$f":"IF(C50=T12,W12,0)","v":0},{"$f":"IF(C67=T12,W12,0)","v":0}]
[null,"Step ",null,null,null,null,null,null,null,null,null,null,null,null,null,null,{"$f":"IF(C18=T13,W13,0)","v":0},{"$f":"IF(C34=T13,W13,0)","v":0},{"$f":"IF(C50=T13,W13,0)","v":0},{"$f":"IF(C67=T13,W13,0)","v":0}]
[null,1,{"$f":"T17","v":0},"     NAC 2 Total Load (automatically entered from Battery Calculator sheet)",null,null,null,null,null,null,null,null,null,null,null,null,{"$f":"IF(C18=T14,W14,0)","v":0},{"$f":"IF(C34=T14,W14,0)","v":0},{"$f":"IF(C50=T14,W14,0)","v":0},{"$f":"IF(C67=T14,W14,0)","v":0}]
[]
[null,2,"#18 Solid","     Select Wire Size and Type",null,null,null,null,null,null,null,null,null,null,null,"wire R",{"$f":"SUM(Q23:Q32)","v":4.8899999999999997},{"$f":"SUM(R23:R32)","v":7.77},{"$f":"SUM(S23:S32)","v":7.77},{"$f":"SUM(T23:T32)","v":7.77}]
[]
[null,3,0,"     Enter 1-Way Wire Length in",null,null,{"$f":"X4","v":"Feet"},null,null,null,null,null,null,null,null,"Wire L",{"$f":"C20*2","v":0},{"$f":"C36*2","v":0},{"$f":"C52*2","v":0},{"$f":"C69*2","v":0}]
[]
[null,4,24,"     NAC Voltage (worst-case is 85% of 24 VDC, 20.4 VDC)",null,null,null,null,null,null,null,null,null,null,null,"total R",{"$f":"(Q34*Q36)/1000","v":0},{"$f":"(R34*R36)/1000","v":0},{"$f":"(S34*S36)/1000","v":0},{"$f":"(T34*T36)/1000","v":0}]
[]
[null,5,{"$f":"R38","v":0},"     Actual Wire Resistance in Ohms (based on steps 2 and 3 above)",null,null,null,null,null,null,null,null,null,null,null,"Vdrop",{"$f":"ROUNDUP(C16*C24,2)","v":0},{"$f":"ROUNDUP(C32*C40,2)","v":0},{"$f":"ROUNDUP(C48*C56,2)","v":0},{"$f":"ROUNDUP(C65*C73,2)","v":0}]
[]
[null,6,16,"     Enter the minimum voltage required (usually 16 volts)",null,null,null,null,null,null,null,null,null,null,null,"EOL V",{"$f":"C22-Q40","v":24},{"$f":"C38-R40","v":24},{"$f":"C54-S40","v":24},{"$f":"C71-T40","v":24}]
[]
[null,7,{"$f":"R42","v":24},"     Voltage at EOL"]
[]
[]
[null,"Step "]
[null,1,{"$f":"T18","v":0},"     NAC 3 Total Load (automatically entered from Battery Calculator sheet)"]
[]
[null,2,"#18 Solid","     Select Wire Size and Type"]
[]
[null,3,0,"     Enter 1-Way Wire Length in",null,null,{"$f":"X4","v":"Feet"}]
[]
[null,4,24,"     NAC Voltage (worst-case is 85% of 24 VDC, 20.4 VDC)"]
[]
[null,5,{"$f":"S38","v":0},"     Actual Wire Resistance in Ohms (based on steps 2 and 3 above)"]
[]
[null,6,16,"     Enter the minimum voltage required (usually 16 volts)"]
[]
[null,7,{"$f":"S42","v":24},"     Voltage at EOL"]
[]
[]
[]
[null,"Step "]
[null,1,{"$f":"T19","v":0},"     NAC 4 Total Load (automatically entered from Battery Calculator sheet)"]
[]
[null,2,"#18 Solid","     Select Wire Size and Type"]
[]
[null,3,0,"     Enter 1-Way Wire Length in",null,null,{"$f":"X4","v":"Feet"}]
[]
[null,4,24,"     NAC Voltage (worst-case is 85% of 24 VDC, 20.4 VDC)"]
[]
[null,5,{"$f":"T38","v":0},"     Actual Wire Resistance in Ohms (based on steps 2 and 3 above)"]
[]
[null,6,16,"     Enter the minimum voltage required (usually 16 volts)"]
[]
[null,7,{"$f":"T42","v":24},"     Voltage at EOL"]
[]
[]
[]
[]
[null,"Note: wire resistance values are based on NEC Table 8 for uncoated conductors at 75°C."]
[]
[]
[]
[]
[]
[]
[]
[]
[]
[null,{"$f":"HCA!B79","v":"V3.4 - 011325"}]